Cogmind - Beta 15 @@@ ROGUE MODE // 2025.05.05 @ 15:45:07 Player: Bogobor Result: Destroyed by Y-45 Defender with Heavy Assault Rifle Performance ------------- Evolutions (1) 500 Regions Visited (2) 400 Robots Destroyed (43) 215 Value Destroyed (985) 985 Prototype IDs (1) 20 Alien Tech Used (0) 0 Bonus (0) 0 TOTAL SCORE: 2120 Bonus ------- None Cogmind --------- Core Integrity 0/400 Matter 225/300 Energy 265/265 System Corruption 11% Temperature Cool (45) Movement Flying (117) Ox1 Location -9/Materials Parts ------- > --- POWER (1) -------- Improved Ion Engine > --- PROPULSION (4) --- Flight Unit Flight Unit > --- UTILITY (2) ------ Hardened Light Armor Plating > --- WEAPON (2) ------- Small Laser Maul > --- INVENTORY (5) ---- Light Ion Engine Medium Storage Unit Seismic Detector Tractor Beam Peak State ------------ > --- POWER ------------ (None) > --- PROPULSION ------- Improved VTOL Module Improved VTOL Module Improved VTOL Module Improved VTOL Module > --- UTILITY ---------- Medium Storage Unit Hardened Medium Armor Plating > --- WEAPON ----------- Assault Rifle Grenade Launcher > --- INVENTORY -------- Light Treads VTOL Module Disposable Heat Sink Seismic Detector Hardened Light Armor Plating Tractor Beam Small Laser Light Cannon [Rating: 23] Favorites ----------- Power Light Ion Engine Engine Light Ion Engine Propulsion Light Treads Treads Light Treads Leg Aluminum Leg Wheel Armored Wheel Hover Unit Improved Hover Unit Flight Unit Improved VTOL Module Utility Medium Storage Unit Device Seismic Detector Storage Medium Storage Unit Processor Terrain Scan Processor Protection Hardened Light Armor Plating Weapon Grenade Launcher Energy Gun Small Laser Energy Cannon Beam Cannon Ballistic Gun Assault Rifle Ballistic Cannon Light Cannon Launcher Grenade Launcher Impact Weapon Maul Build | -11 -10 -9 ------- Run | Yrd Mat Mat Slots Evolved 2 | . . 2 Power . | . . . Propulsion 2 | . . 2 Utility . | . . . Weapon . | . . . Parts Attached 44 | 5 16 23 Power 4 | 1 1 2 Engine 4 | 1 1 2 Core . | . . . Reactor . | . . . Propulsion 23 | 2 6 15 Treads 5 | . 1 4 Leg 5 | 2 3 . Wheel 2 | . . 2 Hover 2 | . 2 . Flight 9 | . . 9 Utility 9 | . 5 4 Device 3 | . 3 . Storage 2 | . 2 . Processor 1 | . . 1 Hackware . | . . . Protection 3 | . . 3 Artifact . | . . . Weapon 8 | 2 4 2 Energy Gun 2 | 2 . . Energy Cannon 1 | . 1 . Ballistic Gun 1 | . . 1 Ballistic Cannon 1 | . 1 . Launcher 2 | . 2 . Special Weapon . | . . . Impact Weapon 1 | . . 1 Slashing Weapon . | . . . Piercing Weapon . | . . . Special Melee Weapon . | . . . Unidentified Prototypes 1 | . . 1 Parts Lost 16 | . 1 15 Power 3 | . 1 2 Propulsion 11 | . . 11 Utility 1 | . . 1 Weapon 1 | . . 1 Highest Loss Streak 5 | . 1 5 To Critical Strikes . | . . . Average Backups 7 | . 8 7 Power . | . . . Propulsion . | . . . Utility 3 | . 4 3 Weapon 3 | . 3 3 Tool/Special . | . . . Unused Backups 8 | . 3 5 Power 2 | . . 2 Propulsion . | . . . Utility 5 | . 3 2 Weapon 1 | . . 1 Tool/Special . | . . . Average Slot Usage (%) 78 | . 88 65 Engine 10 | . 13 6 Treads 7 | . 7 8 Leg 7 | . 12 . Wheel 1 | . . 4 Hover 3 | . 3 3 Flight 5 | . . 13 Device 7 | . 12 1 Storage 10 | . 12 6 Processor 1 | . . 2 Protection 4 | . . 9 Energy Gun 3 | . 6 . Energy Cannon 1 | . 2 1 Launcher 9 | . 16 1 Impact Weapon 1 | . . 4 Peak Build Rating 23 | 5 10 23 Average Rating 8 | 3 7 11 On Entrance 4 | . 5 9 Naked Turns . | . . . Heaviest Build 23 | 6 20 23 Greatest Support 40 | 20 20 40 Greatest Overweight (x) 4 | . 2 4 Average Overweight (x) . | . . . Largest Inventory Capacity 10 | 5 10 10 Average Capacity 8 | 5 9 7 Most Carried 10 | 3 10 10 Average Carried 7 | . 8 7 Final Capacity 10 | 5 10 5 Final Carried 9 | 1 9 4 Class Distribution -------------------- 90% | Mutant 9% | Scavenger-Mutant Dominant Class ---------------- Mutant | -10/Materials Mutant | -9/Materials Resources | -11 -10 -9 ----------- Run | Yrd Mat Mat Matter Collected 1031 | 250 226 555 Remotely 156 | . 13 143 Salvage Created 1050 | 50 351 649 Parts 71 | . 37 34 Haulers Intercepted 4 | . 2 2 Recyclers Shooed 1 | . . 1 Parts Field Recycled . | . . . Retrieved Matter . | . . . Parts Self-Destructed . | . . . Prevented . | . . . Kills | -11 -10 -9 ------- Run | Yrd Mat Mat Combat Hostiles Destroyed 28 | 1 13 14 Melee 3 | . . 3 Guns 5 | 1 3 1 Cannons 3 | . . 3 AOE 15 | . 10 5 Classes Destroyed 9 | 1 6 2 Worker 1 | . 1 . Builder 3 | . 1 2 Hauler 4 | . 2 2 Recycler 2 | . . 2 Operator 1 | . 1 . Watcher 4 | . 3 1 Swarmer 9 | . 3 6 Grunt 15 | 1 10 4 Sentry 4 | . . 4 Best Kill Streak 7 | 1 7 6 Combat Bots Only 6 | 1 6 4 Max Kills in Single Turn 3 | 1 3 2 Gunslinging . | . . . Exploded 3 | . 3 2 Melee 1 | . . 1 Uniques/NPCs Destroyed . | . . . Combat | -11 -10 -9 -------- Run | Yrd Mat Mat Hostile Shots Fired 237 | 4 58 175 Missed 79 | 3 21 55 Hits 158 | 1 37 120 Projectile 158 | 1 37 120 Critical Strikes 7 | . . 7 Damage Taken 2554 | 12 465 2077 Core 544 | . 130 414 Absorbed by Shields . | . . . Regen/Repaired (Parts) 10 | . 10 . Core Remaining (%) 74 | 100 48 . Volleys Fired 84 | 3 42 39 Largest 2 | 2 2 2 Hottest 100 | 80 100 60 Shots Fired 109 | 6 61 42 Gun 49 | 6 29 14 Cannon 23 | . 2 21 Launcher 37 | . 30 7 Special . | . . . Kinetic 6 | . 1 5 Thermal 60 | 3 27 30 Explosive 37 | . 30 7 Electromagnetic 6 | 3 3 . Robot Hit Streak 14 | 3 13 14 Robot Miss Streak 6 | 1 6 3 Penetration Max . | . . . Secondary Targets . | . . . Shots Hit Robots 83 | 4 35 44 Core Hits 63 | 1 38 24 Critical Kills 1 | . . 1 Critical Parts Destroyed 5 | . . 5 Critical Strikes 6 | . . 6 Meltdown 1 | . . 1 Smash 5 | . . 5 Melee Attacks 18 | . . 18 Impact 18 | . . 18 Slashing . | . . . Piercing . | . . . Sneak Attacks 4 | . . 4 Combat Hostiles . | . . . Follow-up Attacks . | . . . Damage Inflicted 3084 | 50 1513 1521 Guns 392 | 50 206 136 Cannons 314 | . 35 279 Explosions 1767 | . 1262 505 Melee 601 | . . 601 Ramming 10 | . 10 . Kinetic 59 | . 18 41 Thermal 694 | 11 235 448 Explosive 1666 | . 1235 431 Electromagnetic 54 | 39 15 . Impact 601 | . . 601 Slashing . | . . . Piercing . | . . . Highest Corruption 11 | . 2 11 Average Corruption 10 | . 2 11 Corruption Purged . | . . . Corruption Blocked . | . . . Effects 10 | . 1 9 Message Errors 3 | . . 3 Matter Fused 5 | . 1 4 Energy Discharges 1 | . . 1 Parts Rejected 1 | . . 1 Overload Shots . | . . . Overflow Damage 334 | . 22 312 Projectiles . | . . . Explosions 22 | . 22 . Melee 312 | . . 312 Knockbacks 2 | . 1 1 Impact 1 | . . 1 Kinetic 1 | . 1 . Secondary . | . . . Self-Inflicted Damage 173 | . 46 127 Shots 5 | . 2 3 Rammed 2 | . 2 . Targets Rammed 4 | . 4 . Kicked 2 | . 2 . Crushed . | . . . Highest Temperature 253 | 60 39 253 Average Temperature 52 | 32 14 80 Received Heat Transfer 789 | 6 228 555 Siege Activations . | . . . Martial Activations . | . . . Shielding Activations . | . . . Robots Disrupted . | . . . Combat Hostiles . | . . . Robots Corrupted 4 | . . 4 Combat Hostiles 2 | . . 2 Parts Fried 3 | . . 3 Impact Corruptions 11 | . . 11 Robots Melted 1 | . . 1 Combat Hostiles . | . . . Parts Melted 4 | . 2 2 Heat Transferred 1454 | 25 512 917 Parts Sabotaged . | . . . Parts Stolen . | . . . Parts Stripped . | . . . Power Chain Reactions 1 | . 1 . Alert | -11 -10 -9 ------- Run | Yrd Mat Mat Maximum Alert Level 1 | . 1 1 Low Security (%) 55 | 100 54 52 Level 1 44 | . 45 47 Level 2 . | . . . Level 3 . | . . . Level 4 . | . . . Level 5 . | . . . High Security . | . . . Max Security . | . . . Peak Influence 365 | 20 267 365 Initial 67 | . 6 67 Average 170 | 1 184 172 Influence Increases 1239 | 20 539 680 Destroy 0b10 Robot/C 560 | 20 260 280 Destroy 0b10 Robot/NC 75 | . 40 35 Destroy Leader 146 | . 70 76 Successful Hack 7 | . 3 4 Disable Machine 75 | . 15 60 Destroy Structure 181 | . 121 60 Partial Spotted 15 | . . 15 Lose Combat Pursuer 180 | . 30 150 Influence Decreases 892 | 10 388 494 Entered New Map 98 | . 4 94 Time Decay 644 | 10 374 260 Lost Part 150 | . 10 140 Squads Dispatched 7 | . 6 1 Investigation 3 | . 3 . Extermination . | . . . Reinforcement 4 | . 3 1 Assault . | . . . Garrison . | . . . Intercept . | . . . Searches Triggered . | . . . Construction Impeded . | . . . Haulers Reinforced . | . . . Active Scanning Responses . | . . . Cargo Convoy Interrupts . | . . . Stealth | -11 -10 -9 --------- Run | Yrd Mat Mat Distress Signals 1 | . . 1 Communications Jammed . | . . . Distress Signals . | . . . Times Spotted 59 | 1 31 27 Peak Tracking Total 7 | 1 4 7 Tactical Retreats 6 | . 1 5 Traps | -11 -10 -9 ------- Run | Yrd Mat Mat Traps Triggered 1 | . 1 . Indirectly . | . . . Trap Hack Attempts . | . . . Triggered . | . . . Disarmed . | . . . Reprogrammed 3 | . 3 . Reused . | . . . Traps Extracted . | . . . Installed . | . . . Triggered . | . . . Machines | -11 -10 -9 ---------- Run | Yrd Mat Mat Machines Disabled 5 | . 1 4 Max in Single Turn 3 | . 1 3 Machines Repaired . | . . . Machines Dismantled . | . . . Machines Sabotaged . | . . . Overloaded Fab Kills . | . . . Hacking | -11 -10 -9 --------- Run | Yrd Mat Mat Machines Accessed 5 | . 4 1 Terminals 3 | . 2 1 Fabricators . | . . . Repair Stations 1 | . 1 . Recycling Units 1 | . 1 . Scanalyzers . | . . . Garrison Access . | . . . Total Hacks 18 | . 14 4 Successful 9 | . 6 3 Failed 9 | . 8 1 Catastrophic 1 | . 1 . Database Lockouts . | . . . Manual . | . . . Terminals 9 | . 5 4 Fabricators . | . . . Repair Stations 3 | . 3 . Recycling Units 6 | . 6 . Scanalyzers . | . . . Garrison Access . | . . . Terminal Hacks 4 | . 1 3 Emergency Access Points 1 | . . 1 Reprogram Traps 1 | . 1 . Dispatch Records 1 | . . 1 Hauler Manifests 1 | . . 1 Fabricator Hacks . | . . . Repair Station Hacks 2 | . 2 . Scan Component 1 | . 1 . Repair 1 | . 1 . Recycling Unit Hacks 3 | . 3 . Report Inventory 2 | . 2 . Retrieve Components 1 | . 1 . Scanalyzer . | . . . Garrison Access Hacks . | . . . Unauthorized Hacks . | . . . Terminals . | . . . Fabricators . | . . . Repair Stations . | . . . Recycling Units . | . . . Scanalyzers . | . . . Garrison Access . | . . . Data Cores Recovered . | . . . Used . | . . . Hacking Detections 3 | . 2 1 Full Trace Events 2 | . 2 . Feedback Events . | . . . Feedback Blocked . | . . . Robot Schematics Acquired . | . . . Robots Built . | . . . Authchips . | . . . Time . | . . . Total Robot Build Rating . | . . . Part Schematics Acquired . | . . . Parts Built . | . . . Authchips . | . . . Time . | . . . Total Part Build Rating . | . . . Parts Repaired 1 | . 1 . Time 26 | . 26 . Parts Recycled . | . . . Recycled Matter . | . . . Retrieved Matter . | . . . Retrieved Components 8 | . 8 . Parts Scanalyzed . | . . . Part Schematics Acquired . | . . . Parts Damaged . | . . . Bothacking | -11 -10 -9 ------------ Run | Yrd Mat Mat Used RIF Installer . | . . . Robots Hacked . | . . . Non-combat . | . . . Combat . | . . . Robot Hacks Applied . | . . . Relay Couplers Released . | . . . Fabnet Peak Effective % . | . . . Robots Rewired . | . . . Allies Hacked . | . . . Hacks Repelled . | . . . Allies | -11 -10 -9 -------- Run | Yrd Mat Mat Total Allies . | . . . Largest Group . | . . . Highest-Rated Group . | . . . Highest-Rated Ally . | . . . Total Orders . | . . . Ally Attacks . | . . . Total Damage . | . . . Kills . | . . . Allies Corrupted . | . . . Allies Melted . | . . . Intel | -11 -10 -9 ------- Run | Yrd Mat Mat Active Infowar (turns) 495 | . 495 . Structural 54 | . 54 . Seismic 441 | . 441 . Robot Analysis Total . | . . . Derelict Logs Recovered . | . . . Drone Launches . | . . . Drone Recoveries . | . . . Exploration | -11 -10 -9 ------------- Run | Yrd Mat Mat Turns Passed 1582 | 82 870 630 Spaces Moved 1083 | 67 578 438 Core 42 | 25 . 17 Treads 284 | . 177 107 Legs 273 | 42 231 . Wheels 78 | . . 78 Hover 241 | . 170 71 Flight 165 | . . 165 Fastest Speed 26 | 50 56 26 Average Speed 109 | 93 120 96 Slowest Speed 400 | 120 190 400 Overloaded Moves . | . . . Propulsion Burnouts . | . . . Robots Hopped . | . . . Potential Cave-ins 2 | . . 2 Cave-ins Triggered 1 | . . 1 Exploration Rate (%) 45 | 7 87 41 Regions Visited 2 Branch Regions . Pre-discovered Areas . | . . . Known Exits Taken . | . . . Unknown Exits Taken 2 | 1 1 . Scrap Searched . | . . . Spaces Dug . | . . . Terrain Destroyed 215 | . 142 73 Melee . | . . . Projectile . | . . . AOE 215 | . 142 73 Terrain Rammed . | . . . Walls Destroyed . | . . . Machines Disabled . | . . . Actions | -11 -10 -9 --------- Run | Yrd Mat Mat Total 1334 | 80 687 567 Wait 19 | . 11 8 Move 1081 | 66 577 438 Hop . | . . . Pick Up 39 | 6 18 15 Fast Attach 14 | . 4 10 Attach 26 | 5 6 15 Detach 9 | . 3 6 Swap 18 | . 10 8 Drop 22 | . 12 10 Fire 84 | 3 42 39 Melee 18 | . . 18 Ram 1 | . 1 . Kick 2 | . 2 . Crush 1 | . 1 . Escape Stasis . | . . . Rewire . | . . . Trap . | . . . Miscellaneous . | . . . Route ------- -11/Scrapyard -10/Materials (discovered 5 exits: *Mat x3 / [*Min] / [*Sub]) -9/Materials (discovered 2 exits: [*Min] / [*Sto]) History --------- Turn | Location | Event 2 | -11/Scrapyard | Met Revision 17 64 | -11/Scrapyard | Discovered new exit (range 8) 83 | -11/Scrapyard | Entered Materials 144 | -10/Materials | Discovered new exit (range 10) 202 | -10/Materials | Discovered new exit (range 15) 308 | -10/Materials | Build established: Mutant 632 | -10/Materials | Discovered new exit (range 8) 845 | -10/Materials | Discovered new exit (range 16) 901 | -10/Materials | Repaired Seismic Detector? 933 | -10/Materials | Discovered new exit (range 9) 951 | -10/Materials | Core integrity fell below 50% 953 | -10/Materials | Entered another Materials area 953 | -9/Materials | Evolved 2 slots: Propulsion x2 1085 | -9/Materials | Lost 3 parts (1p2n) 1164 | -9/Materials | Core integrity fell below 50% 1192 | -9/Materials | Lost 5 parts (1p3n1w) 1215 | -9/Materials | Discovered new exit (range 12) 1321 | -9/Materials | Crushed by falling debris 1321 | -9/Materials | Core integrity fell below 20% 1321 | -9/Materials | System corruption reached 10% 1352 | -9/Materials | Lost 5 parts (4n1u) 1557 | -9/Materials | Discovered new exit (range 10) 1583 | -9/Materials | Destroyed by Y-45 Defender with Heavy Assault Rifle Last Messages --------------- 01549_ K-01 Serf collects debris. 01551_ Dropped Lgt. Treads. 01552_ Acquired Flight Unit. 01552_ K-01 Serf collects debris. 01553_ Dropped Lgt. Armor Plating. 01554_ 0,FLIAD0YTUBDE59H6GLJRC=T 01555_ Acquired 109 matter. 01556_ K-01 Serf collects debris. 01557_ EXIT=FOUND 01558_ K-01 Serf cleans the Fusion Modulator. 01567_ Critical hit (Burn: +37). 01567_ Flight Unit destroyed. 01568_ Y-45 Defender suffers critical hit (Smash). 01568_ Destroyed Beam Rifle. 01568_ Y-45 Defender system corrupted by crushing effect. 01572_ System corrupted: Matter fused (-5). 01572_ Flight Unit destroyed. 01577_ Y-45 Defender misfires. Map ----- +----------------------------------------------------+ | ???????????????????????????? ##/##### | | ?????????????????????????????### # # | | ???????????????????????????????# # # | | ???????????????????????????????# !!! # ! # | | ???????????????????????????????# !!! # ! # | | ???????????????????????????????# !!! / / # | | ???????????????????????????????# # # | | ???????????????????????????????# ###/#### | | ???????????????????????????????# ! ###? | | ????????????????????????????#### ## | | ??????????????????????????? | | ??????????????????????????? ## | | ??????????????????????????? #? | | ????????????????????????????/### ####### | | ???????????????????????????????####### | | ????????????????????????????????????## | | ????????????????????????????????????+ | | ????????????????????????????????????# | | ????????????????????????????????????# | | ????????????????????????????????????# """ """ | | ????????????????????????????????????+ """ """ | | ????????????????????????????????????# """ """ | | ????????????????????################# | | ????????????????????# Y ! # | | ???????????????????## # | | ???????????????????# """@""" """ + | | ???????????????????## """ """ """ # " | | ????????????????????# """ """ """ # ##+####### | | ????????????????????# ## ## " | | ????????????????????################ ## "" | | ???????????????????????????????????# ## T" | | ???????????????????????????????????# ## "" | | ???????????????????????????????????# ## """= % | | ??????????????????????????????????? # """! | | ??????????????????????????????????# # """=* | | ??????????????????????????????????# < # % | | ??????????????????????????????????# ######+### | | ??????????????????????????????????# #????# #?? | | ??????????????????????????????????### ###????# #?? | | ????????????????????????????????????? #??????# #?? | | ????????????????????????????????????? ???????# #?? | | ????????????????????????????????????? ???????# #?? | | ??????????????????????????????????????######## #?? | | ??????????????????????????????????????# ### ### | | ??????????????????????????????????????# # # # | | ??????????????????????????????????????# #"#+### | | ????????????????????????????????????# # # | | ???????????????????????????????????? / # | | ??????????????????????????????????????# # | | ??????????????????????????????????? + # ! | +----------------------------------------------------+ Best States ------------- Heat Dissipation 28 Energy Generation 12 Energy Capacity 265 Matter Stores 300 Matter Capacity 300 Sight Range 16 Terrain Scan Density 85 Armor Coverage 300 Evasion (%) 64 Recoil Reduction 2 Item Schematics ----------------- None Robot Schematics ------------------ None Fabricated ------------ Nothing Repaired ---------- Seismic Detector | 50% | -10/Materials Alien Tech Used ----------------- None Achievements -------------- None Challenges ------------ None Game ------ Seed ColdLayeredShell Manual? 0 Play Time 00:32:13 Cumulative 8.3 hours Start 2025.05.04 @ 23:49:51 End 2025.05.05 @ 15:45:07 Sessions 2 Manual Loads 0 Difficulty Rogue Special Mode None Game No. 2 Rogue 1 Adventurer 1 Explorer 0 Win Type - Total 0 Types 0/0/0/0/0/0/0/0/0/0 Lore% 4 Gallery% 14 Achievement% 78 Wizard Run 0 Options --------- Layout 1 ASCII 0 Keyboard 0 Movement Mouse Keybinds 0 Fullscreen 2 Font 24/Smallcaps Map View 50x35 Zoom Use 0% Tactical HUD 1 Map Filters NONE Filters NONE Steam 1 RUN: 658207f3-77a1-4f30-8ad1-7a3362ca76d4